[Event "Late-Titled-Tuesday-Blitz-June-04-2024"]
[Site "Chess.com"]
[Date "2024.06.04"]
[Round "8"]
[White "BardArtem"]
[Black "jcibarra"]
[Result "1-0"]
[WhiteElo "2758"]
[BlackElo "2909"]
[TimeControl "180+1"]
[EndTime "15:27:54 PDT"]
[Termination "BardArtem won by checkmate"]

1. d4 {[%clk 0:03:00.9]} 1... Nf6 {[%clk 0:02:59.2]} 2. Nc3 {[%clk 0:03:01.1]}
2... d6 {[%clk 0:02:52.6]} 3. e4 {[%clk 0:03:00.4]} 3... e5 {[%clk 0:02:53.2]}
4. Nf3 {[%clk 0:02:58.2]} 4... exd4 {[%clk 0:02:53.2]} 5. Nxd4 {[%clk 0:02:58]}
5... Be7 {[%clk 0:02:53.9]} 6. Bf4 {[%clk 0:02:54]} 6... O-O {[%clk 0:02:53.9]}
7. Qd2 {[%clk 0:02:54.4]} 7... d5 {[%clk 0:02:54.2]} 8. e5 {[%clk 0:02:47.1]}
8... Nh5 {[%clk 0:02:54]} 9. Nf3 {[%clk 0:02:34.7]} 9... Nxf4 {[%clk 0:02:41.5]}
10. Qxf4 {[%clk 0:02:35.6]} 10... c5 {[%clk 0:02:41.2]} 11. O-O-O {[%clk
0:02:31.8]} 11... d4 {[%clk 0:02:37.5]} 12. Ne4 {[%clk 0:02:32]} 12... Qd5
{[%clk 0:02:37.8]} 13. Nf6+ {[%clk 0:02:20.5]} 13... Bxf6 {[%clk 0:01:59.5]} 14.
exf6 {[%clk 0:02:21.4]} 14... Qf5 {[%clk 0:01:55.6]} 15. Qxf5 {[%clk 0:01:49.5]}
15... Bxf5 {[%clk 0:01:56.5]} 16. fxg7 {[%clk 0:01:50.4]} 16... Kxg7 {[%clk
0:01:56.3]} 17. Re1 {[%clk 0:01:50.3]} 17... Nc6 {[%clk 0:01:56]} 18. Bb5 {[%clk
0:01:46.3]} 18... Rac8 {[%clk 0:01:43.6]} 19. Bxc6 {[%clk 0:01:33.6]} 19... Rxc6
{[%clk 0:01:43]} 20. Re7 {[%clk 0:01:34.3]} 20... Rb8 {[%clk 0:01:27.8]} 21.
Rhe1 {[%clk 0:01:21.1]} 21... Kf8 {[%clk 0:00:32.8]} 22. Ne5 {[%clk 0:01:13.8]}
22... Rf6 {[%clk 0:00:32.7]} 23. Rc7 {[%clk 0:01:13.5]} 23... a5 {[%clk
0:00:21.5]} 24. Rxc5 {[%clk 0:00:55]} 24... b6 {[%clk 0:00:22.1]} 25. Rc7 {[%clk
0:00:52.3]} 25... Be6 {[%clk 0:00:20.5]} 26. f3 {[%clk 0:00:51.3]} 26... Rd8
{[%clk 0:00:19.8]} 27. Rc6 {[%clk 0:00:46.8]} 27... b5 {[%clk 0:00:16.2]} 28.
Nd3 {[%clk 0:00:38.9]} 28... Rf5 {[%clk 0:00:14.2]} 29. Rc5 {[%clk 0:00:28.7]}
29... Rxc5 {[%clk 0:00:08.3]} 30. Nxc5 {[%clk 0:00:29.6]} 30... Bd5 {[%clk
0:00:07.6]} 31. a3 {[%clk 0:00:26]} 31... b4 {[%clk 0:00:06.8]} 32. axb4 {[%clk
0:00:25.4]} 32... axb4 {[%clk 0:00:07.5]} 33. b3 {[%clk 0:00:22.5]} 33... Rc8
{[%clk 0:00:05.9]} 34. Nd7+ {[%clk 0:00:22.8]} 34... Kg7 {[%clk 0:00:06.1]} 35.
Nb6 {[%clk 0:00:23.4]} 35... Rc5 {[%clk 0:00:05.4]} 36. Re5 {[%clk 0:00:20.8]}
36... d3 {[%clk 0:00:05]} 37. Nxd5 {[%clk 0:00:11]} 37... Rxc2+ {[%clk
0:00:05.1]} 38. Kd1 {[%clk 0:00:11.2]} 38... Rxg2 {[%clk 0:00:05.6]} 39. Nxb4
{[%clk 0:00:10.6]} 39... Rb2 {[%clk 0:00:04]} 40. Nxd3 {[%clk 0:00:09.5]} 40...
Rxb3 {[%clk 0:00:04.6]} 41. Kc2 {[%clk 0:00:08.8]} 41... Ra3 {[%clk 0:00:04.9]}
42. h4 {[%clk 0:00:07.3]} 42... Ra2+ {[%clk 0:00:04.8]} 43. Kc3 {[%clk
0:00:07.5]} 43... Rh2 {[%clk 0:00:05.4]} 44. Re4 {[%clk 0:00:07.9]} 44... Kg6
{[%clk 0:00:04.9]} 45. Kd4 {[%clk 0:00:07.5]} 45... Kh5 {[%clk 0:00:05.3]} 46.
Ke3 {[%clk 0:00:04]} 46... Rxh4 {[%clk 0:00:05.3]} 47. Re7 {[%clk 0:00:04.2]}
47... Kg6 {[%clk 0:00:04.6]} 48. Ra7 {[%clk 0:00:04.3]} 48... f6 {[%clk
0:00:04]} 49. Nf4+ {[%clk 0:00:04.4]} 49... Kh6 {[%clk 0:00:04.7]} 50. Ra6
{[%clk 0:00:03.9]} 50... Kg7 {[%clk 0:00:04.7]} 51. Ra7+ {[%clk 0:00:04.1]}
51... Kh6 {[%clk 0:00:05]} 52. Ke4 {[%clk 0:00:03.8]} 52... Rh1 {[%clk
0:00:04.2]} 53. Kf5 {[%clk 0:00:03.7]} 53... Rf1 {[%clk 0:00:04.9]} 54. Ra3
{[%clk 0:00:03.3]} 54... Kg7 {[%clk 0:00:04.6]} 55. Ne6+ {[%clk 0:00:02.4]}
55... Kf7 {[%clk 0:00:03.7]} 56. Nf4 {[%clk 0:00:02.7]} 56... Kg7 {[%clk
0:00:03.8]} 57. Nh5+ {[%clk 0:00:03]} 57... Kf7 {[%clk 0:00:03.2]} 58. Nxf6
{[%clk 0:00:03.3]} 58... Kg7 {[%clk 0:00:03.5]} 59. Ng4 {[%clk 0:00:03.5]} 59...
Rb1 {[%clk 0:00:02.8]} 60. Ra7+ {[%clk 0:00:03.9]} 60... Kf8 {[%clk 0:00:02.9]}
61. Ne5 {[%clk 0:00:04]} 61... Rb6 {[%clk 0:00:03]} 62. Rxh7 {[%clk 0:00:03.9]}
62... Rb1 {[%clk 0:00:02.4]} 63. f4 {[%clk 0:00:03.3]} 63... Kg8 {[%clk
0:00:03.1]} 64. Ra7 {[%clk 0:00:03.3]} 64... Rf1 {[%clk 0:00:03.8]} 65. Ng4
{[%clk 0:00:03.2]} 65... Rg1 {[%clk 0:00:03.4]} 66. Nf6+ {[%clk 0:00:03.4]}
66... Kf8 {[%clk 0:00:04.2]} 67. Nd7+ {[%clk 0:00:03.5]} 67... Kg8 {[%clk
0:00:04.3]} 68. Ne5 {[%clk 0:00:04.4]} 68... Rf1 {[%clk 0:00:03.9]} 69. Kg5
{[%clk 0:00:03.8]} 69... Rg1+ {[%clk 0:00:03.8]} 70. Kf6 {[%clk 0:00:04.4]}
70... Kh8 {[%clk 0:00:03.8]} 71. Ng6+ {[%clk 0:00:03.6]} 71... Kg8 {[%clk
0:00:03]} 72. Rg7# {[%clk 0:00:03.9]} 1-0

[Event "Late-Titled-Tuesday-Blitz-June-04-2024"]
[Site "Chess.com"]
[Date "2024.06.04"]
[Round "8"]
[White "denizozen"]
[Black "Kirill_Klukin"]
[Result "1/2-1/2"]
[WhiteElo "2934"]
[BlackElo "2845"]
[TimeControl "180+1"]
[EndTime "15:28:19 PDT"]
[Termination "Game drawn by repetition"]

1. e4 {[%clk 0:03:00.9]} 1... e6 {[%clk 0:02:59]} 2. d4 {[%clk 0:03:01.3]} 2...
d5 {[%clk 0:02:59.4]} 3. exd5 {[%clk 0:03:01.9]} 3... exd5 {[%clk 0:02:59.8]} 4.
Nf3 {[%clk 0:03:02.5]} 4... Nc6 {[%clk 0:03:00.5]} 5. Bb5 {[%clk 0:03:03.1]}
5... Bd6 {[%clk 0:03:00.9]} 6. c4 {[%clk 0:03:03.7]} 6... dxc4 {[%clk
0:03:00.5]} 7. d5 {[%clk 0:03:04.3]} 7... a6 {[%clk 0:03:00.6]} 8. Ba4 {[%clk
0:03:04.4]} 8... b5 {[%clk 0:03:01.2]} 9. dxc6 {[%clk 0:03:04.9]} 9... bxa4
{[%clk 0:03:01.8]} 10. O-O {[%clk 0:03:05.6]} 10... Ne7 {[%clk 0:03:02.2]} 11.
Qxa4 {[%clk 0:03:06]} 11... O-O {[%clk 0:03:02.8]} 12. Nbd2 {[%clk 0:03:04.5]}
12... Rb8 {[%clk 0:02:50.6]} 13. a3 {[%clk 0:03:00.6]} 13... c3 {[%clk
0:02:35.4]} 14. bxc3 {[%clk 0:02:59.4]} 14... Be6 {[%clk 0:02:06.2]} 15. Nc4
{[%clk 0:02:55.6]} 15... Bxc4 {[%clk 0:01:31.2]} 16. Qxc4 {[%clk 0:02:56.2]}
16... Rb6 {[%clk 0:01:32.1]} 17. Bg5 {[%clk 0:02:41.6]} 17... h6 {[%clk
0:01:27.8]} 18. Bxe7 {[%clk 0:02:39]} 18... Qxe7 {[%clk 0:01:28.7]} 19. Rfe1
{[%clk 0:02:34.8]} 19... Qf6 {[%clk 0:01:28.3]} 20. a4 {[%clk 0:02:30.4]} 20...
Rxc6 {[%clk 0:01:28.5]} 21. Qe2 {[%clk 0:01:58.4]} 21... Rxc3 {[%clk 0:01:28.2]}
22. Nd2 {[%clk 0:01:57.3]} 22... Rc2 {[%clk 0:01:07.1]} 23. Qd3 {[%clk 0:01:45]}
23... Qb2 {[%clk 0:00:50.5]} 24. Ne4 {[%clk 0:01:16.4]} 24... Rc6 {[%clk
0:00:29.3]} 25. g3 {[%clk 0:01:05.8]} 25... Qc2 {[%clk 0:00:25.3]} 26. Qd5
{[%clk 0:00:55.9]} 26... Qc4 {[%clk 0:00:25.2]} 27. Qf5 {[%clk 0:00:47]} 27...
Rb8 {[%clk 0:00:20.2]} 28. Rab1 {[%clk 0:00:38.1]} 28... Rd8 {[%clk 0:00:12.5]}
29. a5 {[%clk 0:00:36.2]} 29... Bf8 {[%clk 0:00:12.5]} 30. Rbd1 {[%clk
0:00:34.6]} 30... Rxd1 {[%clk 0:00:10.7]} 31. Rxd1 {[%clk 0:00:35.5]} 31... Re6
{[%clk 0:00:11.4]} 32. f3 {[%clk 0:00:26.7]} 32... g6 {[%clk 0:00:07.7]} 33. Qf4
{[%clk 0:00:22.6]} 33... Qb4 {[%clk 0:00:03.7]} 34. Nf6+ {[%clk 0:00:18.7]}
34... Kg7 {[%clk 0:00:03.3]} 35. Ne4 {[%clk 0:00:12.9]} 35... Bc5+ {[%clk
0:00:02.3]} 36. Kh1 {[%clk 0:00:12.8]} 36... Bd6 {[%clk 0:00:02.8]} 37. Qc1
{[%clk 0:00:06.8]} 37... f5 {[%clk 0:00:02.7]} 38. Nxd6 {[%clk 0:00:07]} 38...
cxd6 {[%clk 0:00:03.4]} 39. Qc7+ {[%clk 0:00:06.8]} 39... Kf6 {[%clk 0:00:04.1]}
40. Qd8+ {[%clk 0:00:07.3]} 40... Kf7 {[%clk 0:00:04.7]} 41. Qd7+ {[%clk
0:00:07.6]} 41... Re7 {[%clk 0:00:05.3]} 42. Qc6 {[%clk 0:00:06.7]} 42... Qb7
{[%clk 0:00:04.2]} 43. Qxb7 {[%clk 0:00:05.9]} 43... Rxb7 {[%clk 0:00:05.1]} 44.
Rxd6 {[%clk 0:00:06.4]} 44... Ra7 {[%clk 0:00:05.6]} 45. Rb6 {[%clk 0:00:06.6]}
45... Kg7 {[%clk 0:00:05.5]} 46. f4 {[%clk 0:00:07.1]} 46... h5 {[%clk
0:00:04.8]} 47. Kg2 {[%clk 0:00:07.5]} 47... Rc7 {[%clk 0:00:05.3]} 48. Rxa6
{[%clk 0:00:07.2]} 48... Rc2+ {[%clk 0:00:06]} 49. Kh3 {[%clk 0:00:07.4]} 49...
Ra2 {[%clk 0:00:06.7]} 50. Ra7+ {[%clk 0:00:07.8]} 50... Kh6 {[%clk 0:00:07.2]}
51. Ra8 {[%clk 0:00:07.9]} 51... Kh7 {[%clk 0:00:07.1]} 52. a6 {[%clk
0:00:08.3]} 52... Kg7 {[%clk 0:00:07.5]} 53. a7 {[%clk 0:00:08.4]} 53... Kh7
{[%clk 0:00:06.5]} 54. Kh4 {[%clk 0:00:05.2]} 54... Rxh2+ {[%clk 0:00:07]} 55.
Kg5 {[%clk 0:00:05.7]} 55... Ra2 {[%clk 0:00:07.7]} 56. Kf6 {[%clk 0:00:06]}
56... Ra1 {[%clk 0:00:05.9]} 57. Kg5 {[%clk 0:00:04]} 57... Ra2 {[%clk
0:00:06.1]} 58. Kf6 {[%clk 0:00:04.1]} 58... Ra3 {[%clk 0:00:06.6]} 59. Kf7
{[%clk 0:00:04.5]} 59... Ra1 {[%clk 0:00:06.2]} 60. Kf6 {[%clk 0:00:04.7]} 60...
Ra3 {[%clk 0:00:06.7]} 61. Kf7 {[%clk 0:00:04.8]} 61... Ra6 {[%clk 0:00:07]} 62.
Ke7 {[%clk 0:00:05.1]} 62... Ra1 {[%clk 0:00:07.2]} 63. Kd7 {[%clk 0:00:05.6]}
63... Kg7 {[%clk 0:00:07.3]} 64. Kc6 {[%clk 0:00:05.7]} 64... Rc1+ {[%clk
0:00:07.6]} 65. Kb6 {[%clk 0:00:06.1]} 65... Rb1+ {[%clk 0:00:08.1]} 66. Kc5
{[%clk 0:00:06.8]} 66... Rc1+ {[%clk 0:00:08.6]} 67. Kd4 {[%clk 0:00:07.2]}
67... Ra1 {[%clk 0:00:09.3]} 68. Kc5 {[%clk 0:00:07.7]} 68... Rc1+ {[%clk
0:00:08.7]} 69. Kb4 {[%clk 0:00:07.9]} 69... Rb1+ {[%clk 0:00:09.2]} 70. Ka3
{[%clk 0:00:08]} 70... Ra1+ {[%clk 0:00:09.8]} 71. Kb2 {[%clk 0:00:08.7]} 71...
Ra6 {[%clk 0:00:10.4]} 72. Kb3 {[%clk 0:00:09.2]} 72... Ra1 {[%clk 0:00:10.6]}
73. Kc4 {[%clk 0:00:09.5]} 73... Ra2 {[%clk 0:00:10.2]} 74. Kd5 {[%clk
0:00:09.5]} 74... Ra1 {[%clk 0:00:10.7]} 75. Kd4 {[%clk 0:00:09.7]} 75... Ra2
{[%clk 0:00:10]} 76. Kc3 {[%clk 0:00:10]} 76... Ra1 {[%clk 0:00:09.8]} 77. Kb3
{[%clk 0:00:10.5]} 77... Kh7 {[%clk 0:00:09.4]} 78. Kc2 {[%clk 0:00:10.6]} 78...
Kg7 {[%clk 0:00:09.7]} 79. Kd3 {[%clk 0:00:10.6]} 79... Ra3+ {[%clk 0:00:09.9]}
80. Kd4 {[%clk 0:00:10.9]} 80... Ra1 {[%clk 0:00:10.2]} 81. Kd5 {[%clk
0:00:11.2]} 81... Kh7 {[%clk 0:00:10.4]} 82. Kd6 {[%clk 0:00:11.6]} 82... Kg7
{[%clk 0:00:10.8]} 83. Ke7 {[%clk 0:00:11.6]} 83... Re1+ {[%clk 0:00:10.8]} 84.
Kd7 {[%clk 0:00:11.7]} 84... Ra1 {[%clk 0:00:11.6]} 85. Kc6 {[%clk 0:00:12]}
85... Rc1+ {[%clk 0:00:12]} 86. Kb6 {[%clk 0:00:12.3]} 86... Rb1+ {[%clk
0:00:12.6]} 87. Kc5 {[%clk 0:00:12.6]} 87... Ra1 {[%clk 0:00:13.1]} 88. Kd5
{[%clk 0:00:12.4]} 88... Rd1+ {[%clk 0:00:13.3]} 89. Kc4 {[%clk 0:00:12.7]}
89... Ra1 {[%clk 0:00:14.2]} 90. Kd4 {[%clk 0:00:13.1]} 90... Rd1+ {[%clk
0:00:14.3]} 91. Kc4 {[%clk 0:00:13.5]} 91... Ra1 {[%clk 0:00:15.2]} 92. Kd4
{[%clk 0:00:14.2]} 1/2-1/2

[Event "Late-Titled-Tuesday-Blitz-June-04-2024"]
[Site "Chess.com"]
[Date "2024.06.04"]
[Round "8"]
[White "Jagerrmeisterr"]
[Black "Love7Unicorn"]
[Result "1-0"]
[WhiteElo "2678"]
[BlackElo "2552"]
[TimeControl "180+1"]
[EndTime "15:29:35 PDT"]
[Termination "Jagerrmeisterr won by checkmate"]

1. e4 {[%clk 0:02:55.9]} 1... c5 {[%clk 0:02:47]} 2. Nc3 {[%clk 0:02:54.8]} 2...
d6 {[%clk 0:02:46.4]} 3. f4 {[%clk 0:02:51.5]} 3... g6 {[%clk 0:02:43.7]} 4. Nf3
{[%clk 0:02:50.8]} 4... Bg7 {[%clk 0:02:44.2]} 5. a4 {[%clk 0:02:47]} 5... Nc6
{[%clk 0:02:37.9]} 6. Bb5 {[%clk 0:02:45.5]} 6... Bd7 {[%clk 0:02:38.4]} 7. O-O
{[%clk 0:02:44.4]} 7... Nd4 {[%clk 0:02:37.1]} 8. Bxd7+ {[%clk 0:02:24.3]} 8...
Qxd7 {[%clk 0:02:37.1]} 9. d3 {[%clk 0:02:21.1]} 9... e6 {[%clk 0:02:21.1]} 10.
e5 {[%clk 0:02:14.9]} 10... Nxf3+ {[%clk 0:01:55.5]} 11. Qxf3 {[%clk 0:02:14.3]}
11... dxe5 {[%clk 0:01:56.2]} 12. fxe5 {[%clk 0:02:11.6]} 12... Bxe5 {[%clk
0:01:57.1]} 13. Ne4 {[%clk 0:02:11.7]} 13... Bd4+ {[%clk 0:01:45.4]} 14. Kh1
{[%clk 0:02:10.4]} 14... f5 {[%clk 0:01:41.2]} 15. c3 {[%clk 0:02:01.6]} 15...
Ne7 {[%clk 0:01:04]} 16. cxd4 {[%clk 0:01:38.9]} 16... fxe4 {[%clk 0:01:00.8]}
17. Qxe4 {[%clk 0:01:20.2]} 17... cxd4 {[%clk 0:01:00.4]} 18. Bg5 {[%clk
0:01:14]} 18... Qd5 {[%clk 0:00:39.6]} 19. Qf4 {[%clk 0:00:51.8]} 19... Nf5
{[%clk 0:00:28]} 20. Rae1 {[%clk 0:00:49.2]} 20... O-O {[%clk 0:00:21]} 21. Qg4
{[%clk 0:00:24.8]} 21... Rae8 {[%clk 0:00:17.9]} 22. Kg1 {[%clk 0:00:23.9]}
22... e5 {[%clk 0:00:14]} 23. Re4 {[%clk 0:00:19.2]} 23... Nd6 {[%clk
0:00:11.3]} 24. Ree1 {[%clk 0:00:19.4]} 24... Rf5 {[%clk 0:00:06.7]} 25. Bh6
{[%clk 0:00:18.7]} 25... Re7 {[%clk 0:00:03.3]} 26. Qh4 {[%clk 0:00:17.5]} 26...
Qe6 {[%clk 0:00:02]} 27. g4 {[%clk 0:00:17.1]} 27... Rxf1+ {[%clk 0:00:01.4]}
28. Rxf1 {[%clk 0:00:18]} 28... Nf7 {[%clk 0:00:01.7]} 29. Rf6 {[%clk
0:00:16.9]} 29... Qd7 {[%clk 0:00:01.9]} 30. Bf8 {[%clk 0:00:11.3]} 30... Kxf8
{[%clk 0:00:01.5]} 31. Qxh7 {[%clk 0:00:11.3]} 31... Re6 {[%clk 0:00:01.3]} 32.
Qh8+ {[%clk 0:00:05.9]} 32... Ke7 {[%clk 0:00:01.6]} 33. Rxe6+ {[%clk
0:00:04.5]} 33... Qxe6 {[%clk 0:00:02.5]} 34. Qb8 {[%clk 0:00:04.4]} 34... Qd7
{[%clk 0:00:02.5]} 35. Qxa7 {[%clk 0:00:03.9]} 35... Kf6 {[%clk 0:00:03.1]} 36.
h3 {[%clk 0:00:03.9]} 36... Kg7 {[%clk 0:00:03.7]} 37. Qc5 {[%clk 0:00:03.8]}
37... Qe6 {[%clk 0:00:03]} 38. a5 {[%clk 0:00:04.2]} 38... Qf6 {[%clk
0:00:02.6]} 39. Qd5 {[%clk 0:00:04.2]} 39... Ng5 {[%clk 0:00:01]} 40. Kg2 {[%clk
0:00:04.2]} 40... Kh6 {[%clk 0:00:01.1]} 41. a6 {[%clk 0:00:04.4]} 41... Qf4
{[%clk 0:00:01.6]} 42. h4 {[%clk 0:00:05.2]} 42... bxa6 {[%clk 0:00:01.2]} 43.
hxg5+ {[%clk 0:00:05.6]} 43... Kxg5 {[%clk 0:00:02.1]} 44. Qd8+ {[%clk
0:00:05.4]} 44... Kxg4 {[%clk 0:00:02.6]} 45. Qd7+ {[%clk 0:00:06.2]} 45... Kh5
{[%clk 0:00:02.9]} 46. Qh7+ {[%clk 0:00:07.1]} 46... Kg5 {[%clk 0:00:03.4]} 47.
Qe7+ {[%clk 0:00:07.5]} 47... Qf6 {[%clk 0:00:04.1]} 48. Qh7 {[%clk 0:00:07.7]}
48... Qf4 {[%clk 0:00:04]} 49. Qe7+ {[%clk 0:00:07.6]} 49... Kh6 {[%clk
0:00:04.1]} 50. Qc5 {[%clk 0:00:08.5]} 50... e4 {[%clk 0:00:03.5]} 51. Qxd4
{[%clk 0:00:08.2]} 51... Qf3+ {[%clk 0:00:03.8]} 52. Kh2 {[%clk 0:00:08.7]}
52... exd3 {[%clk 0:00:04.3]} 53. Qh8+ {[%clk 0:00:09]} 53... Kg5 {[%clk
0:00:04.9]} 54. Qe5+ {[%clk 0:00:09.7]} 54... Qf5 {[%clk 0:00:04.8]} 55. Qe7+
{[%clk 0:00:10.2]} 55... Kg4 {[%clk 0:00:04.7]} 56. Kg2 {[%clk 0:00:08.2]} 56...
Qf3+ {[%clk 0:00:04.7]} 57. Kh2 {[%clk 0:00:08.8]} 57... Qf2+ {[%clk 0:00:04.2]}
58. Kh1 {[%clk 0:00:09]} 58... d2 {[%clk 0:00:03.5]} 59. Qd7+ {[%clk 0:00:07.9]}
59... Kf3 {[%clk 0:00:03.5]} 60. Qd3+ {[%clk 0:00:08.2]} 60... Qe3 {[%clk
0:00:03.1]} 61. Qf1+ {[%clk 0:00:07.7]} 61... Ke4 {[%clk 0:00:03]} 62. Qc4+
{[%clk 0:00:07.9]} 62... Qd4 {[%clk 0:00:02.4]} 63. Qe2+ {[%clk 0:00:07.9]}
63... Kf4 {[%clk 0:00:02.2]} 64. Qf1+ {[%clk 0:00:05.7]} 64... Ke4 {[%clk
0:00:01.7]} 65. Qe2+ {[%clk 0:00:06]} 65... Kd5 {[%clk 0:00:02.4]} 66. Qd1
{[%clk 0:00:05.7]} 66... Qe4+ {[%clk 0:00:02.3]} 67. Kh2 {[%clk 0:00:05.7]}
67... Qe1 {[%clk 0:00:02.7]} 68. Qb3+ {[%clk 0:00:06]} 68... Ke4 {[%clk
0:00:03.2]} 69. Qc4+ {[%clk 0:00:05.8]} 69... Ke3 {[%clk 0:00:03.7]} 70. Qc5+
{[%clk 0:00:05.5]} 70... Ke2 {[%clk 0:00:04.1]} 71. Qc4+ {[%clk 0:00:06.1]}
71... Kd1 {[%clk 0:00:04.4]} 72. Qb3+ {[%clk 0:00:06.5]} 72... Kc1 {[%clk
0:00:05]} 73. Qc3+ {[%clk 0:00:07.2]} 73... Kb1 {[%clk 0:00:05.7]} 74. Qd3+
{[%clk 0:00:07.8]} 74... Ka1 {[%clk 0:00:04.9]} 75. Qa3+ {[%clk 0:00:08.1]}
75... Kb1 {[%clk 0:00:05.5]} 76. Qd3+ {[%clk 0:00:09]} 76... Kxb2 {[%clk
0:00:06.1]} 77. Qd4+ {[%clk 0:00:09.2]} 77... Kb3 {[%clk 0:00:06.4]} 78. Qd3+
{[%clk 0:00:08.5]} 78... Kb2 {[%clk 0:00:06.4]} 79. Qd4+ {[%clk 0:00:08.8]}
79... Kc1 {[%clk 0:00:07.1]} 80. Qc4+ {[%clk 0:00:09.2]} 80... Kd1 {[%clk
0:00:07.8]} 81. Qb3+ {[%clk 0:00:09.7]} 81... Ke2 {[%clk 0:00:08.3]} 82. Qc4+
{[%clk 0:00:10.4]} 82... Ke3 {[%clk 0:00:08.9]} 83. Qc3+ {[%clk 0:00:09.8]}
83... Kf2 {[%clk 0:00:08.7]} 84. Qf6+ {[%clk 0:00:09.7]} 84... Ke3 {[%clk
0:00:08.1]} 85. Qe5+ {[%clk 0:00:09.8]} 85... Kf3 {[%clk 0:00:08.5]} 86. Qf6+
{[%clk 0:00:08.5]} 86... Ke4 {[%clk 0:00:07.5]} 87. Qxg6+ {[%clk 0:00:07.7]}
87... Kd4 {[%clk 0:00:08.2]} 88. Qd6+ {[%clk 0:00:07.6]} 88... Kc4 {[%clk
0:00:08.6]} 89. Qxa6+ {[%clk 0:00:07.9]} 89... Kb4 {[%clk 0:00:08.9]} 90. Qb6+
{[%clk 0:00:08.2]} 90... Kc3 {[%clk 0:00:08.8]} 91. Qc5+ {[%clk 0:00:08.5]}
91... Kb2 {[%clk 0:00:08.4]} 92. Qb4+ {[%clk 0:00:08.8]} 92... Kc1 {[%clk
0:00:08.7]} 93. Qc3+ {[%clk 0:00:09]} 93... Kd1 {[%clk 0:00:08.1]} 94. Kg2
{[%clk 0:00:08.5]} 94... Qe2+ {[%clk 0:00:07.6]} 95. Kg1 {[%clk 0:00:09]} 95...
Qg4+ {[%clk 0:00:07.4]} 96. Kf2 {[%clk 0:00:09.1]} 96... Qf4+ {[%clk 0:00:07.7]}
97. Kg2 {[%clk 0:00:09.7]} 97... Ke2 {[%clk 0:00:06.4]} 98. Qc2 {[%clk
0:00:08.4]} 98... Qf3+ {[%clk 0:00:05.9]} 99. Kh2 {[%clk 0:00:08.8]} 99... Qf1
{[%clk 0:00:05]} 100. Qe4+ {[%clk 0:00:08.6]} 100... Kd1 {[%clk 0:00:04.2]} 101.
Qb1+ {[%clk 0:00:08.9]} 101... Ke2 {[%clk 0:00:04.1]} 102. Qb5+ {[%clk
0:00:09.8]} 102... Kf2 {[%clk 0:00:04.2]} 103. Qf5+ {[%clk 0:00:10.1]} 103...
Ke1 {[%clk 0:00:04.4]} 104. Qa5 {[%clk 0:00:08.5]} 104... Qf2+ {[%clk
0:00:03.4]} 105. Kh3 {[%clk 0:00:08.8]} 105... Ke2 {[%clk 0:00:03.2]} 106. Qb5+
{[%clk 0:00:09.1]} 106... Ke1 {[%clk 0:00:03.5]} 107. Qa5 {[%clk 0:00:09.3]}
107... Qf3+ {[%clk 0:00:02.6]} 108. Kh2 {[%clk 0:00:09.5]} 108... Qe2+ {[%clk
0:00:02.2]} 109. Kg3 {[%clk 0:00:09.5]} 109... Qe3+ {[%clk 0:00:02.6]} 110. Kg2
{[%clk 0:00:10]} 110... Ke2 {[%clk 0:00:01.4]} 111. Qh5+ {[%clk 0:00:09.1]}
111... Ke1 {[%clk 0:00:01.5]} 112. Qh1+ {[%clk 0:00:09.6]} 112... Ke2 {[%clk
0:00:01]} 113. Qf1# {[%clk 0:00:10.2]} 1-0

[Event "Late-Titled-Tuesday-Blitz-June-04-2024"]
[Site "Chess.com"]
[Date "2024.06.04"]
[Round "9"]
[White "Aygehovit1992"]
[Black "Szparu"]
[Result "1-0"]
[WhiteElo "2830"]
[BlackElo "2967"]
[TimeControl "180+1"]
[EndTime "15:38:20 PDT"]
[Termination "Aygehovit1992 won by checkmate"]

1. e4 {[%clk 0:03:00.9]} 1... c5 {[%clk 0:02:59.6]} 2. Nc3 {[%clk 0:03:01.3]}
2... a6 {[%clk 0:02:58.7]} 3. d4 {[%clk 0:03:00.7]} 3... cxd4 {[%clk 0:02:58.9]}
4. Qxd4 {[%clk 0:03:01.6]} 4... Nc6 {[%clk 0:02:59.4]} 5. Qe3 {[%clk 0:03:02.1]}
5... Nf6 {[%clk 0:02:59]} 6. Nf3 {[%clk 0:02:57.4]} 6... d6 {[%clk 0:02:59.3]}
7. b3 {[%clk 0:02:53.7]} 7... g6 {[%clk 0:02:58.9]} 8. Bb2 {[%clk 0:02:53.8]}
8... Bg7 {[%clk 0:02:59.6]} 9. O-O-O {[%clk 0:02:53.9]} 9... O-O {[%clk
0:02:59]} 10. h3 {[%clk 0:02:49.1]} 10... Qa5 {[%clk 0:02:57.4]} 11. Kb1 {[%clk
0:02:45.9]} 11... Be6 {[%clk 0:02:56.5]} 12. Ng5 {[%clk 0:02:39.6]} 12... Bd7
{[%clk 0:02:53.2]} 13. f4 {[%clk 0:02:39.2]} 13... Rac8 {[%clk 0:02:47.5]} 14.
Bc4 {[%clk 0:02:32.6]} 14... b5 {[%clk 0:02:45.3]} 15. Bxf7+ {[%clk 0:02:23.9]}
15... Rxf7 {[%clk 0:02:44.3]} 16. Nxf7 {[%clk 0:02:24.8]} 16... Kxf7 {[%clk
0:02:44.8]} 17. e5 {[%clk 0:02:25.1]} 17... Ne8 {[%clk 0:02:43.4]} 18. Rhe1
{[%clk 0:02:08.1]} 18... Nd8 {[%clk 0:02:36.2]} 19. exd6 {[%clk 0:02:04.1]}
19... Rxc3 {[%clk 0:02:36]} 20. Qxe7+ {[%clk 0:02:02.2]} 20... Kg8 {[%clk
0:02:35.8]} 21. Qxd7 {[%clk 0:02:00.1]} 21... Nf6 {[%clk 0:02:31.3]} 22. Bxc3
{[%clk 0:01:50.7]} 22... Qxc3 {[%clk 0:02:30.9]} 23. Qxd8+ {[%clk 0:01:50.6]}
23... Kf7 {[%clk 0:02:30.1]} 24. Re7# {[%clk 0:01:50.4]} 1-0

[Event "Late-Titled-Tuesday-Blitz-June-04-2024"]
[Site "Chess.com"]
[Date "2024.06.04"]
[Round "9"]
[White "PapaieDudu"]
[Black "gamboajp"]
[Result "0-1"]
[WhiteElo "2325"]
[BlackElo "2120"]
[TimeControl "180+1"]
[EndTime "15:38:59 PDT"]
[Termination "gamboajp won by checkmate"]

1. Nf3 {[%clk 0:03:00.1]} 1... e6 {[%clk 0:02:54.8]} 2. d4 {[%clk 0:03:01]} 2...
d5 {[%clk 0:02:55]} 3. c4 {[%clk 0:03:01.3]} 3... c5 {[%clk 0:02:55]} 4. Nc3
{[%clk 0:03:02.2]} 4... cxd4 {[%clk 0:02:54.7]} 5. Nxd4 {[%clk 0:03:03.1]} 5...
e5 {[%clk 0:02:54.8]} 6. Nf3 {[%clk 0:03:03.1]} 6... d4 {[%clk 0:02:55]} 7. Ne4
{[%clk 0:03:02.1]} 7... f5 {[%clk 0:02:55]} 8. Ng3 {[%clk 0:03:01.5]} 8... f4
{[%clk 0:02:55.4]} 9. Ne4 {[%clk 0:03:01.6]} 9... Bf5 {[%clk 0:02:55.9]} 10.
Ned2 {[%clk 0:02:55.1]} 10... e4 {[%clk 0:02:51]} 11. Ng1 {[%clk 0:02:55.1]}
11... e3 {[%clk 0:02:47.1]} 12. fxe3 {[%clk 0:02:54.5]} 12... dxe3 {[%clk
0:02:43]} 13. Qa4+ {[%clk 0:02:49.9]} 13... Nc6 {[%clk 0:02:37.6]} 14. Ngf3
{[%clk 0:02:48.7]} 14... Bb4 {[%clk 0:02:26.8]} 15. a3 {[%clk 0:02:48]} 15...
exd2+ {[%clk 0:02:25]} 16. Nxd2 {[%clk 0:02:46.5]} 16... Qh4+ {[%clk 0:02:09.7]}
17. g3 {[%clk 0:02:46.2]} 17... fxg3 {[%clk 0:02:09.9]} 18. hxg3 {[%clk
0:02:47.1]} 18... Bxd2+ {[%clk 0:02:08.8]} 19. Bxd2 {[%clk 0:02:48]} 19... Qxh1
{[%clk 0:02:05.6]} 20. O-O-O {[%clk 0:02:48.9]} 20... Qe4 {[%clk 0:02:02.2]} 21.
Bc3 {[%clk 0:02:47.5]} 21... Nf6 {[%clk 0:01:50.1]} 22. e3 {[%clk 0:02:40.2]}
22... O-O {[%clk 0:01:32.6]} 23. Qb3 {[%clk 0:02:33.1]} 23... Na5 {[%clk
0:01:18.6]} 24. Qa2 {[%clk 0:02:32.3]} 24... Qc2# {[%clk 0:01:17.4]} 0-1